bitfinex/quotes_ETHUSD_20240730
["timestamp","ask_amount","ask_price","bid_price","bid_amount"]
[1722364293869,7.39,3294.3,3293.6,0.36447373]
[1722364294220,3.03512,3294.8,3294.1,3.03567]
[1722364294367,3.03512,3294.8,3294.1,3.03568]
[1722364294593,6.07029,3294.8,3294.2,35.0]
[1722364294796,3.03494,3295.0,3294.2,35.0]
[1722364294999,3.03509,3294.8,3294.3,3.04901288]
[1722364295201,6.07025,3294.8,3294.2,35.0]
[1722364295400,3.03509,3294.8,3294.2,35.0]
[1722364296358,3.03509,3294.8,3294.2,38.04901288]
[1722364296656,7.39,3295.1,3294.5,3.03535]
[1722364296798,6.03495,3295.0,3294.3,3.03548]
[1722364296994,6.03495,3295.0,3294.3,3.03547]
[1722364297611,6.03495,3295.0,3294.2,38.04901288]
[1722364297814,3.03514,3294.8,3294.2,35.0]
[1722364298014,3.03523,3294.7,3294.2,35.0]
[1722364298557,3.0,3295.0,3294.2,35.0]
[1722364298558,3.03537,3294.5,3294.2,35.0]
[1722364298842,3.03503,3294.9,3294.2,35.0]
[1722364299050,3.03473,3295.2,3294.3,3.10971719]
[1722364299360,3.03473,3295.2,3294.4,3.03536]
[1722364299945,3.03477,3295.2,3294.5,3.09604978]
[1722364300253,3.03492,3295.0,3294.6,0.61314098]
[1722364300452,3.03492,3295.0,3294.3,6.08447288]
[1722364300749,3.03492,3295.0,3294.4,3.03542]
[1722364300903,7.39,3295.5,3294.4,3.03542]
[1722364300904,3.03458,3295.4,3294.5,3.09603978]
[1722364301105,3.03482,3295.1,3294.6,3.64840598]
[1722364301328,3.03482,3295.1,3294.6,0.61314598]
[1722364301546,6.0697,3295.1,3294.6,0.61314598]
[1722364301718,3.0349,3295.0,3294.6,0.61314598]
[1722364301920,3.0349,3295.0,3294.5,3.03535]
[1722364303304,3.03504,3294.9,3294.3,9.12003288]
[1722364303517,3.03504,3294.9,3294.4,6.08445288]
[1722364304318,3.03477,3295.2,3294.4,6.08445288]
[1722364304319,3.03489,3295.1,3294.4,6.08445288]
[1722364304664,3.03489,3295.1,3294.5,3.03534]
[1722364304963,3.03491,3295.0,3294.5,3.03534]
[1722364305177,3.03491,3295.0,3294.4,3.04901288]
[1722364305315,3.03491,3295.0,3294.5,0.91334958]
[1722364306313,7.39,3295.5,3294.5,4.00938936]
[1722364306619,3.03463,3295.3,3294.7,3.03511]
[1722364306918,3.03463,3295.3,3294.5,4.00933936]
[1722364307258,3.03487,3295.1,3294.5,4.00933936]
[1722364307463,6.06974,3295.1,3294.5,4.00933936]
[1722364307668,3.03485,3295.1,3294.5,4.00933936]
[1722364308017,3.03471,3295.2,3294.5,0.97404936]
[1722364308331,3.03504,3294.9,3294.5,0.06069978]
[1722364308543,3.03522,3294.7,3294.2,35.0]
[1722364308749,3.03482,3295.1,3294.2,35.0]
[1722364308941,3.03538,3294.5,3294.2,35.0]
[1722364309143,2.3048,3294.7,3293.4,5.80826]
[1722364309363,3.03578,3294.1,3293.5,3.03621]
[1722364309568,3.03578,3294.1,3293.6,0.884447]
[1722364309747,3.03578,3294.1,3293.6,35.884447]
[1722364310279,2.3048,3294.7,3293.6,35.0]
[1722364310280,3.03583,3294.0,3293.6,35.0]
[1722364310974,3.03608,3293.8,3293.6,35.0]
[1722364311176,3.03609,3293.7,3292.9,3.03677]
[1722364311379,3.03609,3293.7,3292.9,3.340447]
[1722364311690,3.03643,3293.4,3293.0,35.0]
[1722364311983,6.07289,3293.4,3293.0,35.0]
[1722364312128,3.03644,3293.4,3293.0,38.04901288]
[1722364313232,3.0366,3293.2,3293.0,35.0]
[1722364313472,3.03645,3293.4,3293.0,35.0]
[1722364313705,3.03642,3293.4,3293.0,35.0]
[1722364313895,3.03609,3293.8,3293.0,35.76895155]
[1722364314088,3.03632,3293.5,3293.0,35.76895155]
[1722364314955,6.07269,3293.5,3293.0,35.76895155]
[1722364315158,3.03651,3293.3,3293.0,35.76895155]
[1722364315353,3.03632,3293.5,3293.0,35.76895155]
[1722364315670,3.03646,3293.4,3293.0,35.76895155]
[1722364316191,3.03649,3293.3,3293.0,35.76895155]
[1722364317208,3.03633,3293.5,3293.0,35.76895155]
[1722364317363,3.03633,3293.5,3293.1,3.04901288]
[1722364318601,3.03657,3293.2,3293.0,35.0]
[1722364319162,3.03657,3293.2,3292.3,1.44411553]
[1722364319163,2.4582,3293.2,3292.3,1.44411553]
[1722364319463,3.0368,3293.0,3292.3,1.44411553]
[1722364319664,3.03719,3292.6,3292.4,35.0]
[1722364319901,6.07437,3292.6,3292.3,1.44411553]
[1722364320100,5.798437,3293.2,3292.3,1.44411553]
[1722364320101,2.761857,3293.2,3292.3,1.44411553]
[1722364320265,3.03717,3292.6,3292.3,1.44411553]
[1722364320605,3.03722,3292.5,3292.3,1.44411553]
[1722364320764,3.03729,3292.4,3292.3,1.44411553]
[1722364320964,6.07458,3292.4,3292.3,1.44411553]
[1722364321484,8.40938,3292.4,3292.3,1.44411553]
[1722364321676,9.250318,3292.4,3292.3,1.44411553]
[1722364322868,12.287608,3292.4,3292.3,1.44411553]
[1722364323065,9.250318,3292.4,3292.3,1.44411553]
[1722364323420,6.07458,3292.4,3292.3,1.44411553]
[1722364323580,9.11187,3292.4,3292.3,1.44411553]
[1722364323769,17.46476,3292.4,3292.3,1.44411553]
[1722364324075,14.42747,3292.4,3292.3,1.44411553]
[1722364326510,18.01476,3292.4,3292.3,1.44411553]
[1722364328469,21.05205,3292.4,3292.3,5.53e-06]
[1722364328696,3.03868,3290.9,3290.2,0.1459378]
[1722364328896,3.03905,3290.5,3290.2,0.1459378]
[1722364329130,3.03901,3290.6,3290.2,0.1459378]
[1722364329306,3.03923,3290.3,3290.2,0.1459378]
[1722364329907,3.03913,3290.5,3290.2,0.1459378]
[1722364330108,3.03917,3290.4,3290.2,0.1459378]
[1722364330306,3.03923,3290.3,3290.2,0.1459378]
[1722364331898,6.61202,3290.5,3290.2,0.1459378]
[1722364332453,3.57289,3290.5,3290.2,0.1459378]
[1722364332612,3.03923,3290.3,3290.2,0.1459378]
[1722364333211,6.739672,3290.3,3290.2,0.1459378]
[1722364333422,9.778902,3290.3,3290.2,0.1459378]
[1722364333633,12.778902,3290.3,3290.2,0.1459378]
[1722364333835,20.486232,3290.3,3290.2,7.8e-06]
[1722364334100,20.486232,3290.3,3287.3,1.57212577]
[1722364334101,2.4724,3289.0,3287.4,3.04185]
[1722364334302,2.4724,3289.0,3287.5,0.46139758]
[1722364334303,3.04126,3288.2,3287.5,0.46139758]
[1722364334498,3.04106,3288.4,3287.6,3.04172]
[1722364334725,3.0412,3288.2,3287.6,3.04172]
[1722364334927,3.04073,3288.7,3287.8,3.04145]
[1722364335140,3.04087,3288.6,3287.9,3.04144]
[1722364335345,3.04055,3288.9,3287.7,0.06082934]
[1722364335514,3.0404,3289.1,3288.3,3.041]
[1722364335700,3.04041,3289.1,3288.4,3.04098]
[1722364336054,2.3774,3289.5,3288.6,3.0408]
[1722364336200,3.04041,3289.1,3288.5,3.04088]
[1722364336543,3.04041,3289.1,3288.4,3.04099]
[1722364336748,5.41744,3289.5,3288.1,3.04125]
[1722364336904,3.04051,3289.0,3288.3,3.04102]
[1722364337098,3.04051,3289.0,3288.4,3.04099]
[1722364337312,3.541744,3289.4,3288.4,3.04099]
[1722364337511,3.04028,3289.2,3287.9,2.3999]
[1722364337840,3.541744,3289.4,3288.1,3.04125]
[1722364337841,3.04063,3288.8,3288.1,3.04125]
[1722364338150,3.04054,3288.9,3288.3,3.04105]
[1722364338460,3.344408,3289.1,3288.4,3.04096]
[1722364338597,3.344408,3289.1,3288.6,3.04079]
[1722364338598,0.304028,3289.1,3288.6,3.04079]
[1722364338794,3.0,3289.4,3288.9,3.04046]
[1722364339014,3.03999,3289.5,3288.8,3.04061]
[1722364339219,3.0402,3289.3,3288.4,3.04097]
[1722364339437,3.04043,3289.1,3288.5,3.04089]
[1722364339615,3.04043,3289.1,3288.3,3.04102]
[1722364340044,3.04061,3288.9,3288.1,3.04117]
[1722364340212,3.04061,3288.9,3288.2,3.04113]
[1722364340400,3.04061,3288.9,3288.0,3.28131]
[1722364340401,3.0,3289.4,3288.0,0.23999]
[1722364340748,3.04068,3288.8,3288.2,3.04111]
[1722364340895,3.04036,3289.1,3288.0,0.23999]
[1722364341097,0.360798,3289.3,3288.0,0.23999]
[1722364341325,6.04007,3289.4,3288.7,3.04068]
[1722364341536,3.04018,3289.3,3288.7,3.04068]
[1722364341755,3.04009,3289.4,3288.7,3.04068]
[1722364341953,3.03953,3290.0,3289.1,3.04028]
[1722364342100,7.39,3290.2,3289.7,3.03978]
[1722364342445,7.39,3290.2,3290.0,3.03947]
[1722364342600,7.39,3290.7,3290.3,3.03922]
[1722364342807,3.03864,3291.0,3290.3,3.03917]
[1722364343003,0.540504,3290.9,3290.1,3.03938]
[1722364343231,2.3664,3291.1,3289.7,5.30935]
[1722364343437,3.03871,3290.9,3289.7,2.2696]
[1722364343642,3.03894,3290.7,3290.0,3.03945]
[1722364344264,3.03906,3290.5,3289.8,3.03963]
[1722364344575,3.03894,3290.7,3289.7,5.30935]
[1722364344576,3.03892,3290.7,3289.9,3.03952]
[1722364344751,3.03892,3290.7,3290.0,3.03951]
[1722364344908,3.03897,3290.6,3290.0,3.03951]
[1722364346060,3.03897,3290.6,3289.7,5.840285]
[1722364346061,3.03897,3290.6,3289.9,3.03959]
[1722364346580,10.42842,3291.2,3290.0,0.06078842]
[1722364346887,10.42842,3291.2,3289.7,2.800535]
[1722364346888,7.39,3291.2,3290.8,3.03875]
[1722364347038,7.39,3291.2,3290.4,3.03911]
[1722364347417,10.42845,3291.2,3290.4,6.07812]
[1722364347621,10.42845,3291.2,3290.4,3.03906]
[1722364348044,10.42845,3291.2,3289.7,10.150535]
[1722364348045,7.39,3291.2,3290.6,3.03888]
[1722364348251,6.03807,3291.6,3291.1,3.03849]
[1722364348252,7.39,3291.6,3291.1,3.03849]
[1722364348429,7.39,3291.6,3290.6,0.66856466]
[1722364348430,3.03787,3291.8,3290.6,3.70748466]
[1722364348655,7.39,3292.0,3291.3,3.03825]
[1722364348868,7.39,3292.0,3290.6,6.340489]
[1722364348869,10.42767,3292.0,3290.6,6.340489]
[1722364349064,3.03785,3291.8,3291.0,3.03853]
[1722364349384,3.03795,3291.7,3290.8,3.03873]
[1722364349536,3.03795,3291.7,3290.9,3.03861]
[1722364349734,3.03803,3291.6,3291.0,3.03853]
[1722364350048,3.03803,3291.6,3290.7,3.6728689]
[1722364350049,3.03823,3291.4,3290.7,3.03882]
[1722364350246,3.341843,3291.6,3290.9,3.03867]
[1722364350449,0.303803,3291.6,3290.9,3.03867]
[1722364350647,0.303803,3291.6,3291.2,3.03839]
[1722364351074,10.42769,3292.0,3291.3,35.0]
[1722364351387,10.42769,3292.0,3291.3,38.03825]
[1722364351388,10.42772,3292.0,3291.3,38.03825]
[1722364351672,3.03776,3291.9,3291.3,38.0383]
[1722364351887,3.03776,3291.9,3291.3,35.0]
[1722364352036,7.39,3292.0,3291.3,35.0]
[1722364352238,3.03813,3291.5,3291.3,35.0]
[1722364352830,7.39,3292.0,3291.3,35.0]
[1722364353049,3.03791,3291.8,3291.3,35.0]
[1722364353246,3.03802,3291.7,3291.3,35.0]
[1722364353582,7.39,3292.0,3291.4,3.03821]
[1722364353878,3.03722,3292.5,3291.9,3.03769]
[1722364354180,7.39,3292.9,3292.2,3.03747]
[1722364354485,3.03693,3292.8,3292.0,3.03758]
[1722364354653,3.03707,3292.7,3292.0,3.03758]
[1722364354852,3.03707,3292.7,3291.9,0.06074856]
[1722364355161,3.03753,3292.2,3291.6,3.03802]
[1722364355738,3.03704,3292.7,3291.9,3.03773]
[1722364356075,3.03704,3292.7,3292.1,3.0375]
[1722364356261,13.46378,3292.9,3292.2,3.03748]
[1722364356469,3.0,3292.8,3291.9,3.03768]
[1722364356648,3.03707,3292.7,3292.1,3.03749]
[1722364356836,3.0,3292.8,3292.2,3.03747]
[1722364357373,3.03722,3292.5,3291.9,3.03773]
[1722364357735,3.03709,3292.7,3292.0,3.03766]
[1722364357939,3.0,3292.8,3292.2,3.03747]
[1722364358175,6.03694,3292.8,3292.2,3.03747]
[1722364358779,3.03704,3292.7,3292.0,6.07525]
[1722364358968,3.03717,3292.6,3292.0,3.03759]
[1722364359276,3.03717,3292.6,3291.6,0.303802]
[1722364359277,7.39,3292.9,3291.9,0.06074848]
[1722364359497,2.3005,3293.3,3292.4,3.03724]
[1722364359498,3.03657,3293.2,3292.4,3.03724]
[1722364359634,7.39,3293.3,3292.8,3.0369]
[1722364360240,10.42647,3293.3,3292.8,3.0369]
[1722364360605,10.42647,3293.3,3291.9,5.898]
[1722364360606,3.03685,3292.9,3292.3,3.0373]
[1722364360779,3.03685,3292.9,3292.1,3.03754]
[1722364360780,3.03692,3292.8,3292.1,3.03749]
[1722364361081,7.39,3293.3,3291.9,2.485]
[1722364361082,7.39,3293.3,3292.4,35.0]
[1722364361242,3.03719,3292.6,3291.9,5.52269]
[1722364361443,3.03719,3292.6,3292.0,3.03761]
[1722364361785,3.03719,3292.6,3291.9,35.0]
[1722364361786,3.03738,3292.4,3291.9,35.0]
[1722364362344,3.03726,3292.5,3291.8,3.03784]
[1722364362858,0.607415,3292.6,3292.1,3.03754]
[1722364363062,7.39,3292.8,3291.9,35.0]
[1722364363063,7.39,3292.8,3292.3,3.03733]
[1722364363291,7.39,3292.8,3292.5,3.03719]
[1722364363876,7.39,3292.8,3292.1,3.03752]
[1722364364105,10.42695,3292.8,3292.1,3.03752]
[1722364364261,3.03706,3292.7,3292.1,3.03752]
[1722364364767,3.03735,3292.4,3291.9,35.0]
[1722364365108,3.03726,3292.5,3291.9,38.03774]
[1722364365611,3.03704,3292.7,3291.9,38.03774]
[1722364365612,3.03734,3292.4,3291.9,35.0]
[1722364365761,3.03753,3292.2,3291.9,35.0]
[1722364365964,0.545814,3292.4,3291.2,2.72]
[1722364366176,3.03804,3291.6,3291.2,2.72]
[1722364366377,3.03813,3291.5,3291.3,35.0]
[1722364366580,3.03799,3291.7,3291.0,3.03851]
[1722364366875,7.39,3292.0,3291.4,3.03821]
[1722364367075,7.39,3292.0,3291.5,38.03812]
[1722364367305,3.03792,3291.8,3291.5,35.0]
[1722364367692,3.03813,3291.5,3290.8,6.3815]
[1722364367897,3.03827,3291.4,3290.8,0.3041]
[1722364368096,3.03827,3291.4,3290.3,3.413]
[1722364368097,3.03849,3291.1,3290.0,2.6397]
[1722364368422,3.03837,3291.3,3290.6,3.03895]
[1722364368629,3.0385,3291.1,3290.5,3.03902]
[1722364368855,3.0385,3291.1,3290.4,3.03905]
[1722364369190,3.0385,3291.1,3290.6,35.0]
[1722364369730,6.07676,3291.3,3290.6,35.0]
[1722364369989,0.303827,3291.4,3290.8,3.03869]
[1722364370155,3.03785,3291.8,3291.1,3.03841]
[1722364370300,7.39,3292.0,3291.4,3.03815]
[1722364370494,3.03781,3291.9,3291.2,6.0767]
[1722364370697,3.03781,3291.9,3291.2,3.03833]
[1722364370997,7.39,3292.0,3291.3,0.303833]
[1722364371343,3.03777,3291.9,3291.3,3.03823]
[1722364371640,7.39,3292.0,3291.0,3.03857]
[1722364371952,7.39,3292.0,3290.5,3.039]
[1722364371953,3.03749,3292.2,3291.5,3.03806]
[1722364372150,3.03749,3292.2,3290.9,2.4893]
[1722364372151,3.03759,3292.1,3291.3,3.03823]
[1722364372317,3.03759,3292.1,3291.6,35.0]
[1722364372642,3.03742,3292.3,3291.6,41.07592]
[1722364372837,9.8608,3292.7,3291.6,38.03796]
[1722364373151,3.03725,3292.5,3291.9,3.03768]
[1722364373326,9.8608,3292.7,3291.8,3.03784]
[1722364373531,9.8608,3292.7,3292.1,3.03757]
[1722364373763,3.03713,3292.6,3291.9,3.03767]
[1722364374226,9.8608,3292.7,3292.1,3.03757]
[1722364374227,7.39,3292.7,3292.1,3.03757]
[1722364374429,3.03712,3292.6,3291.9,3.03768]
[1722364374593,3.03712,3292.6,3291.9,3.03775]
[1722364374796,7.39,3292.7,3291.9,3.03773]
[1722364375006,7.39,3292.7,3292.1,3.03752]
[1722364375205,10.42704,3292.7,3292.2,3.03747]
[1722364375403,3.03704,3292.7,3292.2,3.03747]
[1722364376058,3.03678,3293.0,3292.2,3.03739]
[1722364376229,3.0,3292.9,3292.2,3.341169]
[1722364376549,3.0,3292.9,3292.4,3.03724]
[1722364376751,3.0,3292.9,3291.8,3.03781]
[1722364376752,6.03683,3292.9,3292.2,6.07483]
[1722364377056,3.0,3292.9,3291.6,35.0]
[1722364377205,3.03694,3292.8,3292.1,3.0375]
[1722364377410,3.0,3292.9,3291.6,35.0]
[1722364377626,3.03734,3292.4,3291.7,3.03789]
[1722364377873,3.03734,3292.4,3291.7,3.03787]
[1722364378029,3.03734,3292.4,3291.7,6.08688288]
[1722364378231,3.03715,3292.6,3291.7,3.04901288]
[1722364378427,6.03674,3293.0,3292.2,3.03743]
[1722364378629,6.03676,3293.0,3292.0,3.03761]
[1722364378870,6.03676,3293.0,3291.7,3.04901288]
[1722364378871,3.03684,3292.9,3292.2,3.0374]
[1722364379047,3.0,3293.0,3292.5,3.0372]
[1722364379342,7.39,3293.1,3292.7,3.03697]
[1722364379639,7.39,3293.1,3292.6,3.03711]
[1722364380256,3.03648,3293.3,3292.8,3.03692]
[1722364380442,10.42632,3293.5,3292.9,3.03681]
[1722364380653,3.03632,3293.5,3292.9,3.03681]
[1722364380836,3.03632,3293.5,3292.7,3.03701]
[1722364381028,3.03652,3293.3,3292.7,3.03695]
[1722364381379,5.31044,3293.7,3293.1,3.0366]
[1722364381543,7.39,3293.8,3293.1,3.03659]
[1722364381741,3.0,3293.7,3293.1,3.03658]
[1722364382000,10.42605,3293.8,3293.1,3.03658]
[1722364382269,10.42605,3293.8,3292.9,35.0]
[1722364382270,3.03619,3293.6,3293.0,3.03669]
[1722364382587,10.42605,3293.8,3292.9,35.0]
[1722364382588,3.03638,3293.4,3292.9,35.0]
[1722364382732,7.39,3293.8,3292.9,35.0]
[1722364382733,3.0366,3293.2,3292.9,35.0]
[1722364382927,3.03656,3293.2,3292.9,35.0]
[1722364384277,3.03698,3292.8,3292.2,3.03742]
[1722364384575,12.91995,3293.1,3292.4,3.03728]
[1722364384758,7.39,3293.1,3292.4,3.03723]
[1722364384959,7.39,3293.1,3292.7,3.03701]
[1722364385177,7.39,3293.1,3292.5,3.03711]
[1722364385771,7.39,3293.1,3292.4,3.03722]
[1722364386185,3.03684,3292.9,3292.2,38.03741]
[1722364386368,7.39,3293.1,3292.2,38.03741]
[1722364386369,3.03679,3293.0,3292.2,38.03741]
[1722364386529,7.96361727,3293.1,3292.4,3.03721]
[1722364386885,7.39,3293.1,3292.8,3.03687]
[1722364387027,7.39,3293.1,3292.7,3.03699]
[1722364387370,7.39,3293.1,3292.4,0.3045]
[1722364387576,7.39,3293.1,3293.0,3.03674]
[1722364387779,3.03591,3293.9,3293.1,3.03665]
[1722364387986,3.88557,3293.9,3293.1,3.03665]
[1722364388275,3.88557,3293.9,3293.4,3.03637]
[1722364388589,5.46058,3294.1,3293.4,3.03637]
[1722364388834,5.46058,3294.1,3293.3,3.03641]
[1722364388972,7.39,3294.2,3293.7,3.03609]
[1722364389287,7.39,3294.2,3294.0,3.03582]
[1722364389448,3.03529,3294.6,3293.8,3.03593]
[1722364389643,3.03547,3294.4,3293.7,0.06071538]
[1722364389876,7.39,3294.8,3293.5,3.03625]
[1722364389877,3.03572,3294.2,3293.5,3.03625]
[1722364390141,3.03593,3293.9,3293.4,35.0]
[1722364390347,3.03573,3294.1,3293.4,35.0]
[1722364390755,3.0356,3294.3,3293.4,38.03632]
[1722364390954,3.0356,3294.3,3293.7,3.03609]
[1722364391169,3.03564,3294.2,3293.5,3.09691945]
[1722364391390,3.0356,3294.3,3293.4,38.03632]
[1722364391391,3.03578,3294.1,3293.4,38.03632]
[1722364391597,3.03592,3293.9,3293.4,35.0]
[1722364391779,5.38398,3294.1,3293.4,35.0]
[1722364392092,3.0356,3294.3,3293.5,3.0362]
[1722364392237,3.0356,3294.3,3293.7,3.03607]
[1722364392438,3.03568,3294.2,3293.5,6.08521288]
[1722364392667,2.3482,3294.6,3293.4,35.0]
[1722364393303,3.03609,3293.7,3293.0,7.35]
[1722364393444,3.03596,3293.9,3292.7,2.2902]
[1722364393646,3.03625,3293.6,3293.0,3.03671]
[1722364394524,3.03625,3293.6,3293.1,35.0]
[1722364395364,3.03601,3293.8,3293.1,35.0]
[1722364395833,7.39,3294.0,3293.5,3.03628]
[1722364396328,7.39,3294.0,3293.2,3.0365]
[1722364396480,7.39,3294.0,3293.6,3.03619]
[1722364396819,7.39,3294.0,3293.7,35.0]
[1722364397026,3.0,3294.3,3293.7,35.0]
[1722364397329,10.42538,3294.5,3293.2,6.073]
[1722364397330,3.03596,3293.9,3293.2,6.073]
[1722364397462,3.03596,3293.9,3292.8,7.35]
[1722364397463,3.0,3294.4,3293.1,3.0366]
[1722364397667,3.0,3294.4,3292.9,3.03682]
[1722364397668,3.03623,3293.6,3292.9,3.03682]
[1722364397867,3.03606,3293.8,3293.1,38.0366]
[1722364397868,6.07215,3293.8,3293.1,38.0366]
[1722364398095,3.03617,3293.7,3293.1,38.0366]
[1722364398414,3.03636,3293.5,3293.1,35.0]
[1722364398581,3.03615,3293.7,3293.1,38.03659]
[1722364398919,3.03606,3293.8,3293.2,3.03651]
[1722364399109,3.03606,3293.8,3293.3,3.03646]
[1722364399277,7.39,3294.0,3293.5,3.03628]
[1722364399482,7.39,3294.0,3293.6,3.03615]
[1722364399678,3.03565,3294.2,3293.6,6.07227]
[1722364399881,3.0,3294.1,3293.4,3.03631]
[1722364400123,3.0,3294.1,3293.1,38.03659]
[1722364400392,3.0361,3293.7,3293.1,38.03659]
[1722364400673,3.03598,3293.9,3293.2,3.03649]
[1722364400858,3.03586,3294.0,3293.4,3.03631]
[1722364401058,3.03579,3294.1,3293.4,3.03629]
[1722364401248,3.03601,3293.8,3293.2,3.0365]
[1722364401449,0.607144,3294.1,3293.3,3.03646]
[1722364401450,3.03596,3293.9,3293.3,3.03646]
[1722364401651,3.03582,3294.1,3293.3,3.03639]
[1722364401843,9.7382,3294.6,3293.4,0.06072193]
[1722364402046,3.03542,3294.5,3293.9,3.03589]
[1722364402776,5.36866,3295.0,3294.0,0.06071529]
[1722364402949,3.035,3294.9,3294.2,3.03557]
[1722364403336,3.035,3294.9,3294.0,0.06071529]
[1722364403337,3.03509,3294.8,3294.3,38.03549]
[1722364403539,3.03518,3294.7,3294.3,35.0]
[1722364404592,3.03502,3294.9,3294.3,35.0]
[1722364404747,3.03502,3294.9,3294.3,38.03549]
[1722364404948,10.42486,3295.1,3294.4,3.0354]
[1722364405266,3.0,3295.0,3294.5,3.03535]
[1722364405464,7.39,3295.1,3294.3,35.0]
[1722364405649,7.39,3295.1,3294.8,3.03503]
[1722364405853,3.03444,3295.5,3294.9,3.03492]
[1722364406099,3.03444,3295.5,3294.6,3.03521]
[1722364406264,3.03462,3295.3,3294.7,0.06069684]
[1722364406598,3.03497,3295.0,3294.4,3.03541]
[1722364406749,3.03518,3294.7,3294.3,35.0]
[1722364407253,3.0351,3294.8,3294.3,35.0]
[1722364407254,3.03532,3294.6,3294.3,35.0]
[1722364407479,3.03515,3294.8,3294.3,35.0]
[1722364407753,3.03496,3295.0,3294.3,38.03552]
[1722364408103,0.551766,3295.0,3294.3,35.0]
[1722364408268,3.03544,3294.5,3293.9,10.38586]
[1722364408469,3.03544,3294.5,3293.5,2.5787]
[1722364408470,3.03606,3293.8,3293.5,0.3045]
[1722364408701,3.03606,3293.8,3293.2,3.03655]
[1722364408899,2.2855,3294.2,3292.8,3.03686]
[1722364408900,3.03635,3293.5,3292.8,3.03686]
[1722364409120,3.03625,3293.6,3293.1,3.03663]
[1722364409268,3.03602,3293.8,3293.1,3.03663]
[1722364409269,3.03613,3293.7,3293.2,3.03648]
[1722364409472,3.03613,3293.7,3293.1,35.0]
[1722364409718,3.03623,3293.6,3293.1,38.03662]
[1722364410225,3.03613,3293.7,3293.1,38.03662]
[1722364410387,3.03584,3294.0,3293.1,35.0]
[1722364410588,3.03656,3293.2,3292.5,3.03717]
[1722364410788,3.03679,3293.0,3292.3,3.03734]
[1722364411111,2.2855,3293.3,3292.4,35.0]
[1722364411327,3.03642,3293.4,3292.7,3.03695]
[1722364411489,3.03623,3293.6,3292.7,3.03695]
[1722364411490,3.03628,3293.5,3292.7,3.03695]
[1722364411674,3.03623,3293.6,3292.9,3.03682]
[1722364411869,3.03612,3293.7,3293.0,0.06073073]
[1722364412230,10.42564,3294.2,3293.0,0.06072818]
[1722364412231,3.0,3294.1,3293.0,0.06072818]
[1722364412391,3.0,3294.1,3293.1,3.0366]
[1722364412741,3.03615,3293.7,3293.1,3.03661]
[1722364412936,3.03601,3293.8,3293.1,3.03657]
[1722364413072,3.03601,3293.8,3293.2,3.03654]
[1722364413273,3.03626,3293.6,3293.0,3.03672]
[1722364413821,3.03589,3294.0,3293.4,3.03633]
[1722364414115,10.42571,3294.2,3293.5,3.09697913]
[1722364414281,3.03599,3293.9,3293.2,3.03655]
[1722364414479,3.03566,3294.2,3293.6,35.0]
[1722364414676,3.03579,3294.1,3293.6,35.0]
[1722364415212,5.2855,3294.5,3293.8,3.03595]
[1722364415213,3.0,3294.5,3293.8,3.03595]
[1722364415373,3.03545,3294.4,3293.8,3.03595]
[1722364415571,3.03547,3294.4,3293.8,3.03593]
[1722364415818,3.03555,3294.3,3293.9,0.303593]
[1722364416027,3.03544,3294.5,3293.9,0.303593]
[1722364416371,6.07088,3294.5,3293.9,0.303593]
[1722364416619,3.03546,3294.4,3293.9,0.303593]
[1722364417040,3.03584,3294.0,3293.6,35.0]
[1722364417325,3.03569,3294.2,3293.6,35.0]
[1722364417326,3.03582,3294.1,3293.6,35.0]
[1722364417623,3.03583,3294.0,3293.6,35.0]
[1722364417805,6.07139,3294.2,3293.6,35.0]
[1722364418003,3.03569,3294.2,3293.6,35.0]
[1722364418610,3.03548,3294.4,3293.6,39.71497986]
[1722364418779,3.03565,3294.2,3293.6,39.71500986]
[1722364419105,3.03581,3294.1,3293.6,36.67886986]
[1722364419312,3.03565,3294.2,3293.6,36.67886986]
[1722364419509,3.03548,3294.4,3293.7,3.03609]
[1722364419818,3.03548,3294.4,3293.8,6.08494288]
[1722364420003,3.03554,3294.4,3293.6,36.67886986]
[1722364420206,3.03561,3294.3,3293.7,3.03609]
[1722364420527,3.03578,3294.1,3293.6,36.67886986]
[1722364420679,3.03549,3294.4,3293.7,3.03609]
[1722364420875,3.03578,3294.1,3293.6,36.67886986]
[1722364421598,3.0355,3294.4,3293.6,36.67886986]
[1722364422628,3.03536,3294.5,3293.9,3.03591]
[1722364422842,3.03529,3294.6,3294.0,3.03574]
[1722364423056,6.07063,3294.6,3294.0,3.03574]
[1722364423350,3.03504,3294.9,3294.3,3.03553]
[1722364423493,3.03504,3294.9,3294.3,3.09623343]
[1722364424035,3.03467,3295.3,3294.6,3.03526]
[1722364424543,3.03472,3295.2,3294.5,3.03529]
[1722364424740,3.0,3295.1,3294.5,3.03529]
[1722364424951,3.03458,3295.4,3294.8,3.03508]
[1722364425238,6.0692,3295.4,3294.8,3.03508]
[1722364425444,3.03458,3295.4,3294.9,35.0]
[1722364425599,3.03467,3295.3,3294.9,35.0]
[1722364426999,3.0349,3295.0,3294.9,35.0]
[1722364427193,3.03439,3295.6,3294.2,3.03558]
[1722364427415,3.03517,3294.8,3294.2,3.03558]
[1722364427614,3.03516,3294.8,3294.3,35.0]
[1722364427816,3.03522,3294.7,3294.3,35.0]
[1722364428110,3.03495,3295.0,3294.3,35.0]